Cogmind - Beta 10 @@@ ROGUE MODE // 2020.09.10 @ 17:59:34 Player: PlasticHeart Result: Destroyed by 8R-AWN with 8R-AWN's Boregun Performance ------------- Evolutions (0) 0 Regions Visited (3) 600 Robots Destroyed (16) 80 Value Destroyed (194) 194 Prototype IDs (25) 500 Alien Tech Used (0) 0 Bonus (234) 234 TOTAL SCORE: 1608 Bonus ------- Aligned with FarCom 300 Friendly Fire -66 Cogmind --------- Core Integrity 0/250 Matter 119/300 Energy 100/100 System Corruption 0% Temperature Cool (6) Movement Core (800) Ox15 Location -10/Exiles Parts ------- > --- POWER (1) -------- (None) > --- PROPULSION (2) --- (None) > --- UTILITY (2) ------ Large Storage Unit High-capacity Storage Unit > --- WEAPON (2) ------- (None) > --- INVENTORY (18) --- Light Ion Engine Wheel Wheel Wheel Wheel Large Storage Unit Medium Laser Small Laser Small Laser AWS/Thermal Peak State ------------ > --- POWER ------------ Ion Engine > --- PROPULSION ------- Compact Wheel Compact Wheel > --- UTILITY ---------- Large Storage Unit High-capacity Storage Unit > --- WEAPON ----------- AWS/Thermal > --- INVENTORY -------- Light Ion Engine Wheel Wheel Wheel Wheel Large Storage Unit Medium Laser Small Laser Small Laser Shotgun Shotgun Light Cannon [Rating: 22] Favorites ----------- Power Ion Engine Engine Ion Engine Propulsion Compact Wheel Wheel Compact Wheel Utility Large Storage Unit Storage Large Storage Unit Weapon Shotgun Energy Gun Medium Laser Ballistic Gun Shotgun Ballistic Cannon Light Cannon Build | -11 -10 -10 -10 ------- Run | Scr Mat Min Exi Slots Evolved . | . . . . Power . | . . . . Propulsion . | . . . . Utility . | . . . . Weapon . | . . . . Parts Attached 16 | 7 5 . 4 Power 1 | 1 . . . Engine 1 | 1 . . . Core . | . . . . Reactor . | . . . . Propulsion 2 | 2 . . . Treads . | . . . . Leg . | . . . . Wheel 2 | 2 . . . Hover . | . . . . Flight . | . . . . Utility 5 | 2 3 . . Device . | . . . . Storage 5 | 2 3 . . Processor . | . . . . Hackware . | . . . . Protection . | . . . . Artifact . | . . . . Weapon 8 | 2 2 . 4 Energy Gun 3 | 2 . . 1 Energy Cannon . | . . . . Ballistic Gun 4 | . 2 . 2 Ballistic Cannon 1 | . . . 1 Launcher . | . . . . Special Weapon . | . . . . Impact Weapon . | . . . . Slashing Weapon . | . . . . Piercing Weapon . | . . . . Special Melee Weapon . | . . . . Unidentified Prototypes . | . . . . Parts Lost 6 | . . . 6 Power 1 | . . . 1 Propulsion 2 | . . . 2 Utility . | . . . . Weapon 3 | . . . 3 Highest Loss Streak 6 | . . . 6 Average Slot Usage (%) 95 | . 100 100 89 Engine 13 | . 14 14 12 Wheel 27 | . 28 28 27 Storage 28 | . 28 28 28 Energy Gun 9 | . 12 . 7 Ballistic Gun 14 | . 15 28 11 Naked Turns . | . . . . Heaviest Build 61 | 16 59 59 61 Greatest Support 32 | 32 32 32 32 Greatest Overweight (x) 5 | 5 1 1 1 Average Overweight (x) . | 1 . 1 1 Largest Inventory Capacity 18 | 8 18 18 18 Average Capacity 15 | 6 16 18 18 Most Carried 14 | 6 12 12 14 Average Carried 10 | 4 9 12 12 Final Capacity 18 | 8 18 18 18 Final Carried 12 | 4 12 12 11 Class Distribution -------------------- 100% | Mutant Dominant Class ---------------- Mutant | -10/Materials Mutant | -10/Mines Mutant | -10/Exiles Resources | -11 -10 -10 -10 ----------- Run | Scr Mat Min Exi Matter Collected 401 | 162 191 48 . Remotely . | . . . . Salvage Created 402 | 69 276 48 9 Parts 34 | 7 23 4 . Haulers Intercepted 2 | . 2 . . Recyclers Shooed . | . . . . Parts Field Recycled . | . . . . Retrieved Matter . | . . . . Parts Self-Destructed . | . . . . Prevented . | . . . . Kills | -11 -10 -10 -10 ------- Run | Scr Mat Min Exi Combat Hostiles Destroyed 10 | . 6 3 1 Guns 10 | . 6 3 1 Classes Destroyed 7 | 2 4 . 1 Worker 2 | . 2 . . Tunneler 1 | 1 . . . Hauler 2 | . 2 . . Recycler 1 | 1 . . . Swarmer 6 | . 3 3 . Grunt 3 | . 3 . . Assembled 1 | . . . 1 Best Kill Streak 4 | 2 4 3 1 Combat Bots Only 3 | . 3 3 1 Max Kills in Single Turn 2 | 1 1 2 1 Gunslinging 1 | . . 1 . Exploded . | . . . . Melee . | . . . . Uniques/NPCs Destroyed . | . . . . Combat | -11 -10 -10 -10 -------- Run | Scr Mat Min Exi Damage Taken 959 | . 236 31 692 Core 253 | . 62 . 191 Absorbed by Shields . | . . . . Core Remaining (%) 100 | 100 . . . Volleys Fired 44 | 6 24 2 12 Largest 2 | 2 2 2 2 Hottest 90 | 90 90 46 58 Shots Fired 83 | 12 48 4 19 Gun 77 | 12 48 4 13 Cannon 6 | . . . 6 Launcher . | . . . . Special . | . . . . Kinetic 63 | . 40 4 19 Thermal 20 | 12 8 . . Explosive . | . . . . Electromagnetic . | . . . . Robot Hit Streak 8 | 4 8 2 5 Robot Miss Streak 5 | 1 5 2 4 Penetration Max . | . . . . Secondary Targets 2 | . . 2 . Max Gunslinging Chain 1 | . . 1 . Shots Hit Robots 61 | 8 35 4 14 Core Hits 29 | 3 17 3 6 Critical Hits . | . . . . Critical Kills . | . . . . Critical Parts Destroyed . | . . . . Melee Attacks . | . . . . Impact . | . . . . Slashing . | . . . . Piercing . | . . . . Sneak Attacks . | . . . . Combat Hostiles . | . . . . Follow-up Attacks . | . . . . Damage Inflicted 839 | 108 447 34 250 Guns 790 | 108 447 34 201 Cannons 49 | . . . 49 Explosions . | . . . . Melee . | . . . . Ramming . | . . . . Kinetic 662 | . 378 34 250 Thermal 177 | 108 69 . . Explosive . | . . . . Electromagnetic . | . . . . Impact . | . . . . Slashing . | . . . . Piercing . | . . . . Highest Corruption . | . . . . Average Corruption . | . . . . Corruption Purged . | . . . . Overload Shots . | . . . . Overflow Damage . | . . . . Projectiles . | . . . . Explosions . | . . . . Melee . | . . . . Knockbacks . | . . . . Impact . | . . . . Kinetic . | . . . . Secondary . | . . . . Self-Inflicted Damage . | . . . . Shots . | . . . . Rammed . | . . . . Targets Rammed . | . . . . Kicked . | . . . . Crushed . | . . . . Highest Temperature 72 | 60 72 . 6 Average Temperature 25 | 28 23 . 6 Received Heat Transfer 116 | . 96 . 20 Siege Activations . | . . . . Robots Corrupted . | . . . . Combat Hostiles . | . . . . Parts Fried . | . . . . Impact Corruptions . | . . . . Robots Melted . | . . . . Combat Hostiles . | . . . . Parts Melted . | . . . . Heat Transferred 471 | 285 186 . . Parts Sabotaged . | . . . . Parts Stolen . | . . . . Parts Stripped . | . . . . Power Chain Reactions . | . . . . Missiles Intercepted . | . . . . Alert | -11 -10 -10 -10 ------- Run | Scr Mat Min Exi Peak Influence 205 | 10 205 149 . Initial 79 | . 6 79 . Average 74 | 3 88 146 . Maximum Alert Level 1 | . 1 . . Low Security (%) 85 | 100 79 100 . Level 1 14 | . 20 . . Level 2 . | . . . . Level 3 . | . . . . Level 4 . | . . . . Level 5 . | . . . . High Security . | . . . . Max Security . | . . . . Squads Dispatched . | . . . . Investigation . | . . . . Extermination . | . . . . Reinforcement . | . . . . Assault . | . . . . Garrison . | . . . . Intercept . | . . . . Construction Impeded . | . . . . Haulers Reinforced . | . . . . Stealth | -11 -10 -10 -10 --------- Run | Scr Mat Min Exi Distress Signals 2 | . 2 . . Communications Jammed . | . . . . Distress Signals . | . . . . Times Spotted 17 | . 11 2 4 Peak Tracking Total 9 | . 5 2 9 Tactical Retreats 1 | . 1 . . Traps | -11 -10 -10 -10 ------- Run | Scr Mat Min Exi Traps Triggered . | . . . . Indirectly . | . . . . Trap Hack Attempts . | . . . . Triggered . | . . . . Disarmed . | . . . . Reprogrammed . | . . . . Reused . | . . . . Traps Extracted . | . . . . Installed . | . . . . Triggered . | . . . . Machines | -11 -10 -10 -10 ---------- Run | Scr Mat Min Exi Machines Disabled 1 | . . . 1 Max in Single Turn 1 | . . . 1 Machines Sabotaged . | . . . . Garrisons Compromised . | . . . . Overloaded Fab Kills . | . . . . Fab Network Shutdowns . | . . . . Hacking | -11 -10 -10 -10 --------- Run | Scr Mat Min Exi Machines Accessed 2 | . 1 . 1 Terminals 1 | . 1 . . Fabricators . | . . . . Repair Stations . | . . . . Recycling Units . | . . . . Scanalyzers . | . . . . Garrison Access . | . . . . Total Hacks 3 | . 2 . 1 Successful 3 | . 2 . 1 Failed . | . . . . Catastrophic . | . . . . Database Lockouts . | . . . . Manual 1 | . . . 1 Terminals 2 | . 2 . . Fabricators . | . . . . Repair Stations . | . . . . Recycling Units . | . . . . Scanalyzers . | . . . . Garrison Access . | . . . . Terminal Hacks 3 | . 2 . 1 Prototype ID Bank 1 | . 1 . . Locate Traps 1 | . 1 . . EX-Prototype ID Bank 1 | . . . 1 Fabricator Hacks . | . . . . Repair Station Hacks . | . . . . Recycling Unit Hacks . | . . . . Scanalyzer . | . . . . Garrison Access Hacks . | . . . . Unauthorized Hacks . | . . . . Terminals . | . . . . Fabricators . | . . . . Repair Stations . | . . . . Recycling Units . | . . . . Scanalyzers . | . . . . Garrison Access . | . . . . Data Cores Recovered . | . . . . Used . | . . . . Hacking Detections 1 | . 1 . . Full Trace Events . | . . . . Feedback Events . | . . . . Feedback Blocked . | . . . . Robot Schematics Acquired . | . . . . Robots Built . | . . . . Matter . | . . . . Time . | . . . . Total Robot Build Rating . | . . . . Part Schematics Acquired . | . . . . Parts Built . | . . . . Matter . | . . . . Time . | . . . . Total Part Build Rating . | . . . . Parts Repaired . | . . . . Time . | . . . . Parts Recycled . | . . . . Recycled Matter . | . . . . Retrieved Matter . | . . . . Retrieved Components . | . . . . Parts Scanalyzed . | . . . . Part Schematics Acquired . | . . . . Parts Damaged . | . . . . Bothacking | -11 -10 -10 -10 ------------ Run | Scr Mat Min Exi Used RIF Installer . | . . . . Robots Hacked . | . . . . Non-combat . | . . . . Combat . | . . . . Robot Hacks Applied . | . . . . Relay Couplers Released . | . . . . Robots Rewired . | . . . . Allies Hacked . | . . . . Hacks Repelled . | . . . . Allies | -11 -10 -10 -10 -------- Run | Scr Mat Min Exi Total Allies . | . . . . Largest Group . | . . . . Highest-Rated Group . | . . . . Highest-Rated Ally . | . . . . Total Orders . | . . . . Ally Attacks . | . . . . Total Damage . | . . . . Kills . | . . . . Allies Corrupted . | . . . . Allies Melted . | . . . . Intel | -11 -10 -10 -10 ------- Run | Scr Mat Min Exi Robot Analysis Total . | . . . . Derelict Logs Recovered 1 | . . 1 . Drone Launches . | . . . . Drone Recoveries . | . . . . Exploration | -11 -10 -10 -10 ------------- Run | Scr Mat Min Exi Turns Passed 881 | 113 368 41 359 Spaces Moved 626 | 55 250 32 289 Core 43 | 43 . . . Treads . | . . . . Legs . | . . . . Wheels 583 | 12 250 32 289 Hover . | . . . . Flight . | . . . . Fastest Speed 50 | 50 100 110 110 Average Speed 112 | 145 108 110 110 Slowest Speed 300 | 300 110 110 110 Overloaded Moves . | . . . . Propulsion Burnouts . | . . . . Robots Hopped . | . . . . Cave-ins Triggered . | . . . . Exploration Rate (%) 28 | 5 56 11 41 Regions Visited 3 Branch Regions 2 Pre-discovered Areas . | . . . . Known Exits Taken . | . . . . Unknown Exits Taken 3 | 1 1 1 . Scrap Searched . | . . . . Spaces Dug . | . . . . Terrain Destroyed . | . . . . Melee . | . . . . Projectile . | . . . . AOE . | . . . . Terrain Rammed . | . . . . Walls Destroyed . | . . . . Machines Disabled . | . . . . Actions | -11 -10 -10 -10 --------- Run | Scr Mat Min Exi Total 719 | 73 298 33 315 Wait 10 | . 10 . . Move 623 | 54 249 31 289 Hop . | . . . . Pick Up 18 | 6 8 . 4 Fast Attach 5 | 5 . . . Attach 6 | 2 . . 4 Detach 1 | . . . 1 Swap 5 | . 5 . . Drop 7 | . 2 . 5 Fire 44 | 6 24 2 12 Melee . | . . . . Ram . | . . . . Kick . | . . . . Crush . | . . . . Escape Stasis . | . . . . Rewire . | . . . . Trap . | . . . . Miscellaneous . | . . . . Route ------- -11/Scrapyard -10/Materials (discovered 3 exits: [*Mat x2] / [*Min]) -10/Mines -10/Exiles History --------- Turn | Location | Event 19 | -11/Scrapyard | Discovered new exit (range 16) 114 | -11/Scrapyard | Entered Materials 189 | -10/Materials | Discovered new exit (range 8) 251 | -10/Materials | Discovered new exit (range 3) 305 | -10/Materials | Build established: Mutant 359 | -10/Materials | Discovered new exit (range 14) 482 | -10/Materials | Entered Mines 490 | -10/Mines | Learned 2 Materials zone layouts 497 | -10/Mines | Met a Derelict bent on vengeance 518 | -10/Mines | Deemed a non-threat by the Exiles lab entrance 518 | -10/Mines | Discovered new exit (range 5) 523 | -10/Mines | Entered Exiles 554 | -10/Exiles | Met 8R-AWN 571 | -10/Exiles | Met EX-HEX 603 | -10/Exiles | Met EX-BIN 618 | -10/Exiles | Aligned with FarCom system 619 | -10/Exiles | Given EX-Vault access code 644 | -10/Exiles | Opened EX-Vault 651 | -10/Exiles | Found AWS/Thermal 677 | -10/Exiles | Warned to stay clear of 0b10 Research branches 852 | -10/Exiles | Attacked by the Exiles 875 | -10/Exiles | Core integrity fell below 50% 879 | -10/Exiles | Core integrity fell below 20% 882 | -10/Exiles | Destroyed by 8R-AWN with 8R-AWN's Boregun Last Messages --------------- 00873_ HV Slug penetrates Wall. 00873_ Penetrated by HV Slug. 00873_ HV Slug penetrates Wall. 00875_ as-27131 destroyed. 00875_ Penetrated by HV Slug. 00875_ HV Slug penetrates Wall. 00875_ Penetrated by HV Slug. 00875_ HV Slug penetrates Wall. 00878_ Penetrated by HV Slug. 00878_ HV Slug penetrates Wall. 00878_ Penetrated by HV Slug. 00878_ HV Slug penetrates Wall. 00880_ Penetrated by HV Slug. 00880_ Critical hit. 00880_ Com. Wheel destroyed. 00880_ HV Slug penetrates Wall. 00882_ Shotgun destroyed. 00882_ Penetrated by HV Slug. 00882_ HV Slug penetrates Wall. 00882_ Penetrated by HV Slug. Map ----- +----------------------------------------------------+ | ""#??????????????????????????????????????????????? | | ""#??????????????????????????????????????????????? | | ""#??????????????????????????????????????????????? | | """??????????????????????????????????????????????? | | ""#??????????????????????????????????????????????? | | """??????????????????????????????????????????????? | | #??????????????????????????????????????????????? | | ""#??????????????????????????????????????????????? | | ###??????????????????????????????????????????????? | | ?????????????????????????????????????????????????? | | ?????????????????????????????????????????????????? | | ????????????????????????????????????????????? ???? | | #########???????????????????????????????????? ? | | """"""""##??????????????????????????????????? ? | | """ """"##?????????????????????????????????# #? | | "" " #???????????????????????????????## ## | | " """#???????????????????????????????# # | | " "#???????????#####???????????????# # | | " "##?????????## #??????????????## ? | | ""###???????#" #?????????????## #?? | | """#??????##"*g*##????????????# #?? | | "#????### ###????????### #??? | | ##???# ########## #??? | | ##?## #""""## #???? | | ### aa% ##??? | | #;@ #??? | | #### ##?? | | ""#?#" " #### ### | | #"""##?#####;#??#### # | | ######???????? #????##### | | ##??????????????#????????### | | " ##??????????????????????????### | | """ ""#?????????????????????????????### | | ""#" "##??????????????????????????????#" | | """##"""""""##???????????????????????????????#### | | ""#?#########???????????????????????????????????# | | #???????????????????????????????????????????????## | | ?????????????????????????????????????????????????# | | ?????????????????????????????????????????????????? | | ?????????????????????????????????????????????????? | | ?????????????????????????????????????????????????? | | ?????????????????????????????????????????????????? | | ?????????????????????????????????????????????????? | | ?????????????????????????????????????????????????? | | ?????????????????????????????????????????????????? | | ?????????????????????????????????????????????????? | | ?????????????????????????????????????????????????? | | ?????????????????????????????????????????????????? | | ?????????????????????????????????????????????????? | | ?????????????????????????????????????????????????? | +----------------------------------------------------+ Best States ------------- Heat Dissipation 25 Energy Generation 10 Energy Capacity 250 Matter Stores 222 Matter Capacity 300 Sight Range 16 Terrain Scan Density 10 Evasion (%) 50 Item Schematics ----------------- None Robot Schematics ------------------ None Fabricated ------------ Nothing Alien Tech Used ----------------- None Achievements -------------- None Challenges ------------ None Game ------ Seed SmallProcessingPerforator Manual? 0 Play Time 00:08:05 Cumulative 776.3 hours Start 2020.09.10 @ 17:53:46 End 2020.09.10 @ 17:59:34 Sessions 1 Manual Loads 0 Difficulty Rogue Special Mode None Game No. 416 Rogue 416 Adventurer 0 Explorer 0 Win Type - Total 63 Types 34/5/13/6/1/1/3/0/0 Lore% 88 Gallery% 89 Achievement% 75 Wizard Run 0 Options --------- ASCII 0 Keyboard 0 Movement Mouse Keybinds 0 Fullscreen 0 Font 32/Smallcaps Map View 76x50 Tactical HUD 1 Map Filters NONE Filters NONE Steam 0 RUN: 1b128afb-917d-4c48-85f8-03cbddb19a64